[Event "FIDE Womens Grand Swiss 2021"]
[Site "Riga"]
[Date "2021.10.30"]
[Round "4.18"]
[White "Socko, Monika"]
[Black "Atalik, Ekaterina"]
[Result "1/2-1/2"]
[ECO "B13"]
[WhiteElo "2397"]
[BlackElo "2420"]
[Annotator "NA"]
[PlyCount "133"]
[EventDate "2021.10.27"]
[EventType "swiss"]
[EventCountry "LAT"]
[Tiebreak "Cut1 Buchholz+Sonneborn-Berger (Swiss)"]
[SourceTitle "playchess.com"]
[Source "ChessBase"]
[SourceQuality "1"]
[TimeControl "40/6000+30:20/3000+30:900+30"]

1. e4 {[%emt 0:10:03]} c6 {[%emt 0:10:14]} 2. d4 {[%emt 0:00:07]} d5 {[%emt 0:
00:05]} 3. exd5 {[%emt 0:00:15]} cxd5 {[%emt 0:00:07]} 4. Bd3 {[%emt 0:00:08]}
Nc6 {[%emt 0:00:32]} 5. c3 {[%emt 0:00:06]} Nf6 {[%emt 0:00:20]} 6. h3 {
[%emt 0:00:12]} g6 {[%emt 0:00:16]} 7. Nf3 {[%emt 0:00:49]} Bg7 {[%emt 0:00:06]
} 8. Bf4 {[%emt 0:02:46]} O-O {[%emt 0:01:25]} 9. O-O {[%emt 0:00:25]} Nh5 {
[%emt 0:00:47]} 10. Be3 {[%emt 0:05:46]} f5 {[%emt 0:01:46]} 11. Na3 {[%emt 0:
01:42]} Kh8 {[%emt 0:03:34]} 12. Qe2 {[%emt 0:03:25]} Be6 {[%emt 0:12:20]} 13.
Rfe1 {[%emt 0:06:18]} Bg8 {[%emt 0:06:01]} 14. Bg5 {[%emt 0:04:45]} Nf6 {
[%emt 0:05:26]} 15. Bxf6 {[%emt 0:03:23]} exf6 {[%emt 0:01:58]} 16. Qd2 {
[%emt 0:04:27]} Qd7 {[%emt 0:02:23]} 17. Re2 {[%emt 0:01:55]} Rfe8 {[%emt 0:07:
07]} 18. Rae1 {[%emt 0:00:43]} Re4 {[%emt 0:02:33]} 19. Nh2 {[%emt 0:01:10]}
Rae8 {[%emt 0:02:12]} 20. f3 {[%emt 0:02:15]} Rxe2 {[%emt 0:01:24]} 21. Rxe2 {
[%emt 0:00:04]} Rxe2 {[%emt 0:02:05]} 22. Bxe2 {[%emt 0:00:51]} Bf8 {[%emt 0:
01:16]} 23. Nc2 {[%emt 0:01:10]} Bd6 {[%emt 0:00:26]} 24. b3 {[%emt 0:03:34]}
Bc7 {[%emt 0:03:15]} 25. Ne1 {[%emt 0:04:05]} Kg7 {[%emt 0:01:29]} 26. Nf1 {
[%emt 0:03:11]} Qd6 {[%emt 0:01:15]} 27. Nd3 {[%emt 0:01:15]} b6 {[%emt 0:03:
03]} 28. f4 {[%emt 0:03:26]} Nd8 {[%emt 0:03:33]} 29. Bf3 {[%emt 0:02:24]} Be6
{[%emt 0:06:06]} 30. Ne3 {[%emt 0:02:53]} Nc6 {[%emt 0:04:54]} 31. g3 {[%emt 0:
04:08]} Ne7 {[%emt 0:00:53]} 32. Qg2 {[%emt 0:02:54]} a5 {[%emt 0:01:08]} 33.
b4 {[%emt 0:02:50]} Bf7 {[%emt 0:02:45]} 34. bxa5 {[%emt 0:01:47]} bxa5 {
[%emt 0:00:05]} 35. Qb2 {[%emt 0:00:07]} Qb6 {[%emt 0:08:47]} 36. Qxb6 {
[%emt 0:01:51]} Bxb6 {[%emt 0:00:03]} 37. Nc5 {[%emt 0:00:58]} Bc7 {[%emt 0:01:
55]} 38. Kf2 {[%emt 0:00:36]} g5 {[%emt 0:00:15]} 39. Nd3 {[%emt 0:01:27]} Kf8
{[%emt 0:01:56]} 40. Bd1 {[%emt 0:02:33]} Ke8 {[%emt 0:04:10]} 41. Ba4+ {
[%emt 0:54:32]} Kd8 {[%emt 0:50:07]} 42. Bc2 {[%emt 0:00:17]} h6 {[%emt 0:06:
50]} 43. Nc5 {[%emt 0:05:35]} gxf4 {[%emt 0:01:06]} 44. gxf4 {[%emt 0:00:03]}
Bxf4 {[%emt 0:03:21]} 45. Nb7+ {[%emt 0:00:40]} Kc7 {[%emt 0:00:19]} 46. Nxa5 {
[%emt 0:00:04]} Bg5 {[%emt 0:00:00]} 47. Nb3 {[%emt 0:00:00]} Bh4+ {[%emt 0:00:
00]} 48. Kf1 {[%emt 0:00:00]} Be6 {[%emt 0:00:00]} 49. Nc5 {[%emt 0:00:00]} Bc8
{[%emt 0:00:00]} 50. Nd3 {[%emt 0:00:00]} Bg5 {[%emt 0:00:00]} 51. Ke2 {
[%emt 0:00:00]} f4 {[%emt 0:00:00]} 52. Ng4 {[%emt 0:00:00]} h5 {[%emt 0:00:00]
} 53. Ngf2 {[%emt 0:00:00]} Nf5 {[%emt 0:00:00]} 54. Nb4 {[%emt 0:00:00]} Ng3+
{[%emt 0:00:00]} 55. Kf3 {[%emt 0:00:00]} Kd6 {[%emt 0:00:00]} 56. Bg6 {
[%emt 0:02:04]} h4 {[%emt 0:00:00]} 57. Bf7 {[%emt 0:02:52]} Bb7 {[%emt 0:00:
00]} 58. a4 {[%emt 0:03:10]} Ne4 {[%emt 0:00:00]} 59. a5 {[%emt 0:04:35]} Nxc3
{[%emt 0:00:00]} 60. a6 {[%emt 0:00:18]} Ba8 {[%emt 0:00:00]} 61. Be8 {[%emt 0:
17:32]} Kc7 {[%emt 0:10:45]} 62. Nfd3 {[%emt 0:00:55]} Kb6 {[%emt 0:05:15]} 63.
Nxf4 {[%emt 0:01:05]} Ka5 {[%emt 0:01:58]} 64. Bc6 {[%emt 0:04:07]} Bxc6 {
[%emt 0:00:48]} 65. Nxc6+ {[%emt 0:00:04]} Kxa6 {[%emt 0:00:06]} 66. Nb4+ {
[%emt 0:00:05]} Kb5 {[%emt 0:00:04]} 67. Nbxd5 {[%emt 0:00:07]} 1/2-1/2

[Event "FIDE Womens Grand Swiss 2021"]
[Site "Riga"]
[Date "2021.10.30"]
[Round "4.20"]
[White "Hoang, Thanh Trang"]
[Black "Maltsevskaya, Aleksandra"]
[Result "1/2-1/2"]
[ECO "A47"]
[WhiteElo "2380"]
[BlackElo "2411"]
[Annotator "NA"]
[PlyCount "73"]
[EventDate "2021.10.27"]
[EventType "swiss"]
[EventCountry "LAT"]
[Tiebreak "Cut1 Buchholz+Sonneborn-Berger (Swiss)"]
[SourceTitle "playchess.com"]
[Source "ChessBase"]
[SourceQuality "1"]
[TimeControl "40/6000+30:20/3000+30:900+30"]

1. d4 {[%emt 0:10:10]} Nf6 {[%emt 0:10:08]} 2. Nf3 {[%emt 0:00:37]} b6 {
[%emt 0:00:18]} 3. e3 {[%emt 0:01:30]} Bb7 {[%emt 0:00:17]} 4. Bd3 {[%emt 0:00:
22]} g6 {[%emt 0:05:08]} 5. O-O {[%emt 0:01:21]} Bg7 {[%emt 0:00:23]} 6. c4 {
[%emt 0:01:15]} O-O {[%emt 0:01:32]} 7. Re1 {[%emt 0:00:57]} d5 {[%emt 0:03:57]
} 8. cxd5 {[%emt 0:02:09]} Nxd5 {[%emt 0:00:13]} 9. e4 {[%emt 0:00:43]} Nb4 {
[%emt 0:05:05]} 10. Bc4 {[%emt 0:05:41]} c5 {[%emt 0:06:35]} 11. d5 {[%emt 0:
03:39]} e6 {[%emt 0:06:32]} 12. Nc3 {[%emt 0:18:27]} exd5 {[%emt 0:00:59]} 13.
exd5 {[%emt 0:01:34]} b5 {[%emt 0:15:40]} 14. Nxb5 {[%emt 0:03:04]} Bxd5 {
[%emt 0:10:09]} 15. Bxd5 {[%emt 0:04:31]} Nxd5 {[%emt 0:00:28]} 16. Bg5 {
[%emt 0:06:19]} Qd7 {[%emt 0:01:16]} 17. Ne5 {[%emt 0:07:33]} Bxe5 {[%emt 0:13:
03]} 18. Rxe5 {[%emt 0:00:18]} Qxb5 {[%emt 0:01:26]} 19. Rxd5 {[%emt 0:04:34]}
Nc6 {[%emt 0:13:27]} 20. Bf6 {[%emt 0:04:30]} Rfe8 {[%emt 0:01:58]} 21. Rc1 {
[%emt 0:01:48]} Nb4 {[%emt 0:05:43]} 22. a4 {[%emt 0:04:24]} Qc6 {[%emt 0:02:
45]} 23. Rd6 {[%emt 0:00:36]} Qe4 {[%emt 0:00:05]} 24. Qd2 {[%emt 0:02:55]} Re6
{[%emt 0:00:51]} 25. f3 {[%emt 0:01:50]} Qe3+ {[%emt 0:00:42]} 26. Qxe3 {
[%emt 0:00:12]} Rxe3 {[%emt 0:00:04]} 27. h4 {[%emt 0:02:51]} Rd3 {[%emt 0:03:
30]} 28. Rxd3 {[%emt 0:02:47]} Nxd3 {[%emt 0:00:06]} 29. Rd1 {[%emt 0:01:42]}
c4 {[%emt 0:00:53]} 30. b3 {[%emt 0:02:24]} Nc5 {[%emt 0:00:09]} 31. bxc4 {
[%emt 0:01:46]} Nxa4 {[%emt 0:00:07]} 32. Ra1 {[%emt 0:04:55]} Nb6 {[%emt 0:00:
07]} 33. c5 {[%emt 0:00:33]} Nd7 {[%emt 0:00:10]} 34. Bd4 {[%emt 0:00:31]} Rc8
{[%emt 0:00:35]} 35. Kf1 {[%emt 0:00:51]} Kf8 {[%emt 0:00:57]} 36. Ke2 {
[%emt 0:01:18]} Nxc5 {[%emt 0:00:16]} 37. Bxc5+ {[%emt 0:01:36]} 1/2-1/2

[Event "FIDE Womens Grand Swiss 2021"]
[Site "Riga"]
[Date "2021.10.30"]
[Round "4.21"]
[White "Buksa, Nataliya"]
[Black "Rogule, Laura"]
[Result "0-1"]
[ECO "B51"]
[WhiteElo "2409"]
[BlackElo "2289"]
[Annotator "NA"]
[PlyCount "78"]
[EventDate "2021.10.27"]
[EventType "swiss"]
[EventCountry "LAT"]
[Tiebreak "Cut1 Buchholz+Sonneborn-Berger (Swiss)"]
[SourceTitle "playchess.com"]
[Source "ChessBase"]
[SourceQuality "1"]
[TimeControl "40/6000+30:20/3000+30:900+30"]

1. e4 {[%emt 0:10:02]} c5 {[%emt 0:10:08]} 2. Nf3 {[%emt 0:00:11]} d6 {[%emt 0:
00:27]} 3. Bb5+ {[%emt 0:00:05]} Nd7 {[%emt 0:03:52]} 4. a4 {[%emt 0:00:08]}
Ngf6 {[%emt 0:04:08]} 5. Nc3 {[%emt 0:01:01]} e6 {[%emt 0:09:46]} 6. d4 {
[%emt 0:03:39]} cxd4 {[%emt 0:01:35]} 7. Qxd4 {[%emt 0:00:18]} Be7 {[%emt 0:07:
41]} 8. O-O {[%emt 0:01:12]} O-O {[%emt 0:01:33]} 9. Rd1 {[%emt 0:01:00]} e5 {
[%emt 0:03:35]} 10. Qe3 {[%emt 0:11:51]} Qc7 {[%emt 0:03:07]} 11. Qe2 {[%emt 0:
05:11]} h6 {[%emt 0:06:00]} 12. a5 {[%emt 0:06:05]} Nc5 {[%emt 0:06:02]} 13.
Bc4 {[%emt 0:04:30]} Bg4 {[%emt 0:06:32]} 14. Nd5 {[%emt 0:04:08]} Nxd5 {
[%emt 0:01:27]} 15. Bxd5 {[%emt 0:00:05]} Ne6 {[%emt 0:02:04]} 16. Be3 {
[%emt 0:10:59]} a6 {[%emt 0:04:49]} 17. c3 {[%emt 0:05:59]} Bg5 {[%emt 0:04:01]
} 18. h3 {[%emt 0:00:56]} Bh5 {[%emt 0:04:44]} 19. g4 {[%emt 0:02:18]} Bxe3 {
[%emt 0:03:30]} 20. fxe3 {[%emt 0:02:39]} Bg6 {[%emt 0:00:06]} 21. Nh4 {
[%emt 0:10:08]} Qe7 {[%emt 0:07:51]} 22. Nxg6 {[%emt 0:17:03]} fxg6 {[%emt 0:
00:04]} 23. Qc4 {[%emt 0:00:01]} Qh4 {[%emt 0:07:04]} 24. Bxe6+ {[%emt 0:00:13]
} Kh7 {[%emt 0:01:00]} 25. Rd2 {[%emt 0:01:16]} Rf3 {[%emt 0:09:55]} 26. g5 {
[%emt 0:05:43]} Raf8 {[%emt 0:00:52]} 27. Kh1 {[%emt 0:01:00]} d5 {[%emt 0:01:
01]} 28. Qd3 {[%emt 0:02:32]} dxe4 {[%emt 0:00:52]} 29. Qc4 {[%emt 0:00:03]}
Rxe3 {[%emt 0:00:27]} 30. Rg1 {[%emt 0:02:22]} Rff3 {[%emt 0:00:32]} 31. Rh2 {
[%emt 0:01:17]} Re1 {[%emt 0:00:21]} 32. Rhg2 {[%emt 0:00:38]} Rxg1+ {[%emt 0:
00:25]} 33. Kxg1 {[%emt 0:00:03]} Qe1+ {[%emt 0:00:09]} 34. Kh2 {[%emt 0:00:02]
} Rf1 {[%emt 0:00:26]} 35. Bg8+ {[%emt 0:02:25]} Kh8 {[%emt 0:00:02]} 36. Qxf1
{[%emt 0:00:41]} Qxf1 {[%emt 0:00:02]} 37. Bd5 {[%emt 0:00:03]} hxg5 {[%emt 0:
01:07]} 38. Bxb7 {[%emt 0:00:28]} e3 {[%emt 0:00:20]} 39. Rg1 {[%emt 0:00:12]}
e2 {[%emt 0:00:21]} 0-1

[Event "FIDE Womens Grand Swiss 2021"]
[Site "Riga"]
[Date "2021.10.30"]
[Round "4.22"]
[White "Cramling, Pia"]
[Black "Golsta, Madara"]
[Result "1-0"]
[ECO "A05"]
[WhiteElo "2447"]
[BlackElo "2003"]
[Annotator "NA"]
[PlyCount "69"]
[EventDate "2021.10.27"]
[EventType "swiss"]
[EventCountry "LAT"]
[Tiebreak "Cut1 Buchholz+Sonneborn-Berger (Swiss)"]
[SourceTitle "playchess.com"]
[Source "ChessBase"]
[SourceQuality "1"]
[TimeControl "40/6000+30:20/3000+30:900+30"]

1. Nf3 {[%emt 0:10:18]} Nf6 {[%emt 0:10:21]} 2. c4 {[%emt 0:00:11]} g6 {
[%emt 0:00:27]} 3. Nc3 {[%emt 0:00:40]} d5 {[%emt 0:00:22]} 4. cxd5 {[%emt 0:
00:51]} Nxd5 {[%emt 0:00:07]} 5. Qb3 {[%emt 0:00:29]} Nb6 {[%emt 0:00:35]} 6.
d4 {[%emt 0:00:19]} Bg7 {[%emt 0:00:14]} 7. Bg5 {[%emt 0:00:20]} Be6 {[%emt 0:
01:08]} 8. Qc2 {[%emt 0:01:36]} Nc6 {[%emt 0:06:32]} 9. Rd1 {[%emt 0:15:51]}
Nb4 {[%emt 0:10:26]} 10. Qb1 {[%emt 0:00:50]} O-O {[%emt 0:01:03]} 11. e3 {
[%emt 0:08:54]} Bf5 {[%emt 0:05:43]} 12. e4 {[%emt 0:01:42]} Bg4 {[%emt 0:03:
11]} 13. Be2 {[%emt 0:04:35]} f5 {[%emt 0:07:40]} 14. O-O {[%emt 0:13:21]} Bxf3
{[%emt 0:09:10]} 15. Bxf3 {[%emt 0:01:06]} Nc6 {[%emt 0:00:19]} 16. exf5 {
[%emt 0:06:47]} Rxf5 {[%emt 0:06:17]} 17. Be3 {[%emt 0:01:56]} Nxd4 {[%emt 0:
15:24]} 18. Bxb7 {[%emt 0:00:30]} Rb8 {[%emt 0:00:23]} 19. Be4 {[%emt 0:00:29]}
Rh5 {[%emt 0:00:59]} 20. Bxg6 {[%emt 0:07:34]} hxg6 {[%emt 0:02:17]} 21. Rxd4 {
[%emt 0:02:43]} Qe8 {[%emt 0:01:32]} 22. Rg4 {[%emt 0:02:33]} Kh7 {[%emt 0:00:
53]} 23. Qc2 {[%emt 0:03:38]} Qc6 {[%emt 0:05:46]} 24. Rd1 {[%emt 0:00:49]} Nc4
{[%emt 0:05:17]} 25. Bc1 {[%emt 0:01:58]} Ne5 {[%emt 0:02:15]} 26. Rg3 {
[%emt 0:00:34]} Rf8 {[%emt 0:02:19]} 27. Qe2 {[%emt 0:02:16]} Nc4 {[%emt 0:01:
03]} 28. Rg4 {[%emt 0:03:33]} Nd6 {[%emt 0:02:15]} 29. Ne4 {[%emt 0:03:13]}
Nxe4 {[%emt 0:01:09]} 30. Rxe4 {[%emt 0:00:32]} Rc5 {[%emt 0:00:42]} 31. Re6 {
[%emt 0:06:45]} Rc2 {[%emt 0:01:06]} 32. Qg4 {[%emt 0:03:38]} Qe8 {[%emt 0:03:
54]} 33. Qh4+ {[%emt 0:01:12]} Kg8 {[%emt 0:00:09]} 34. Rxe7 {[%emt 0:00:16]}
Qd8 {[%emt 0:01:19]} 35. Rxg7+ {[%emt 0:00:19]} 1-0

[Event "FIDE Womens Grand Swiss 2021"]
[Site "Riga"]
[Date "2021.10.30"]
[Round "4.23"]
[White "Divya Deshmukh"]
[Black "Milliet, Sophie"]
[Result "1/2-1/2"]
[ECO "C78"]
[WhiteElo "2305"]
[BlackElo "2410"]
[Annotator "NA"]
[PlyCount "213"]
[EventDate "2021.10.27"]
[EventType "swiss"]
[EventCountry "LAT"]
[Tiebreak "Cut1 Buchholz+Sonneborn-Berger (Swiss)"]
[SourceTitle "playchess.com"]
[Source "ChessBase"]
[SourceQuality "1"]
[TimeControl "40/6000+30:20/3000+30:900+30"]

1. e4 {[%emt 0:10:02]} e5 {[%emt 0:10:05]} 2. Nf3 {[%emt 0:00:03]} Nc6 {
[%emt 0:00:04]} 3. Bb5 {[%emt 0:00:04]} a6 {[%emt 0:00:12]} 4. Ba4 {[%emt 0:00:
04]} Nf6 {[%emt 0:00:08]} 5. O-O $11 {[%emt 0:00:04]} b5 {[%emt 0:00:17]} 6.
Bb3 {[%emt 0:00:03]} Bc5 {[%emt 0:00:07]} 7. d3 {[%emt 0:02:55]} d6 {[%emt 0:
02:40]} 8. c3 {[%emt 0:02:01]} O-O {[%emt 0:01:16]} 9. a4 {[%emt 0:00:18]} Rb8
{[%emt 0:01:56]} 10. h3 {[%emt 0:05:23]} h6 {[%emt 0:05:26]} 11. d4 {[%emt 0:
18:50]} Bb6 {[%emt 0:01:27]} 12. Be3 {[%emt 0:16:18]} Re8 {[%emt 0:02:34]} 13.
Nbd2 {[%emt 0:14:39]} exd4 {[%emt 0:33:04]} 14. cxd4 {[%emt 0:00:28]} Na5 {
[%emt 0:00:33]} 15. Bc2 {[%emt 0:09:47]} Nc4 {[%emt 0:00:06]} 16. Nxc4 {
[%emt 0:03:26]} bxc4 {[%emt 0:00:04]} 17. Nd2 {[%emt 0:03:04]} Bb7 {[%emt 0:01:
18]} 18. a5 {[%emt 0:14:13]} Ba7 {[%emt 0:00:04]} 19. Nxc4 {[%emt 0:02:33]}
Bxe4 {[%emt 0:00:30]} 20. Bxe4 {[%emt 0:00:20]} Rxe4 {[%emt 0:00:49]} 21. Qd3 {
[%emt 0:00:12]} Rb5 {[%emt 0:07:59]} 22. Rfe1 {[%emt 0:02:18]} Qa8 {[%emt 0:05:
35]} 23. Na3 {[%emt 0:03:23]} Rxa5 {[%emt 0:05:06]} 24. b4 {[%emt 0:00:45]} Rd5
{[%emt 0:04:56]} 25. Qxa6 {[%emt 0:00:57]} Qb8 {[%emt 0:00:06]} 26. Nc2 {
[%emt 0:00:14]} Bb6 {[%emt 0:00:11]} 27. Rec1 {[%emt 0:00:38]} Qe8 {[%emt 0:11:
21]} 28. Qb7 {[%emt 0:00:41]} Kh7 {[%emt 0:00:26]} 29. Ra8 {[%emt 0:00:42]} Qd7
{[%emt 0:07:41]} 30. Na3 {[%emt 0:00:32]} Qe6 {[%emt 0:02:34]} 31. Nc4 {
[%emt 0:00:21]} Bxd4 {[%emt 0:00:14]} 32. Qxc7 {[%emt 0:00:14]} Bxe3 {[%emt 0:
01:51]} 33. Nxe3 {[%emt 0:00:01]} Rxe3 {[%emt 0:01:59]} 34. fxe3 {[%emt 0:00:
02]} Qxe3+ {[%emt 0:00:06]} 35. Kh1 {[%emt 0:01:03]} Ne4 {[%emt 0:01:56]} 36.
Qc8 {[%emt 0:00:54]} Rg5 {[%emt 0:01:00]} 37. Ra2 {[%emt 0:00:52]} Nf2+ {
[%emt 0:01:39]} 38. Rxf2 {[%emt 0:00:04]} Qxf2 {[%emt 0:00:02]} 39. Qc2+ {
[%emt 0:00:57]} Qxc2 {[%emt 0:00:03]} 40. Rxc2 {[%emt 0:00:03]} Rb5 {[%emt 0:
00:12]} 41. Rc6 {[%emt 0:50:31]} Rxb4 {[%emt 0:24:33]} 42. Rxd6 {[%emt 0:00:00]
} h5 {[%emt 0:00:19]} 43. Kg1 {[%emt 0:00:00]} h4 {[%emt 0:00:07]} 44. Kf2 {
[%emt 0:00:00]} Rf4+ {[%emt 0:01:47]} 45. Ke3 {[%emt 0:00:00]} g5 {[%emt 0:00:
16]} 46. Ra6 {[%emt 0:00:00]} f6 {[%emt 0:00:21]} 47. Rb6 {[%emt 0:00:00]} Kg6
{[%emt 0:00:07]} 48. Ra6 {[%emt 0:00:00]} Rf5 {[%emt 0:01:27]} 49. Ke2 {
[%emt 0:00:00]} Kh5 {[%emt 0:05:02]} 50. Ra8 {[%emt 0:00:00]} Kg6 {[%emt 0:01:
24]} 51. Ra6 {[%emt 0:00:00]} Rb5 {[%emt 0:01:02]} 52. Kf2 {[%emt 0:00:00]} Kf5
{[%emt 0:00:12]} 53. Kf3 {[%emt 0:00:00]} Ke5 {[%emt 0:00:32]} 54. Ra8 {
[%emt 0:00:00]} Rb3+ {[%emt 0:00:29]} 55. Kf2 {[%emt 0:00:00]} Rd3 {[%emt 0:03:
12]} 56. Ke2 {[%emt 0:00:00]} Rc3 {[%emt 0:00:15]} 57. Kf2 {[%emt 0:00:00]} Rc4
{[%emt 0:02:27]} 58. Kf3 {[%emt 0:00:00]} Rc3+ {[%emt 0:05:00]} 59. Kf2 {
[%emt 0:00:00]} Rc5 {[%emt 0:00:20]} 60. Kf3 {[%emt 0:00:00]} f5 {[%emt 0:00:
47]} 61. Re8+ {[%emt 0:05:25]} Kf6 {[%emt 0:15:19]} 62. Rf8+ {[%emt 0:01:29]}
Ke7 {[%emt 0:00:51]} 63. Rg8 {[%emt 0:00:51]} Rc3+ {[%emt 0:00:12]} 64. Kf2 {
[%emt 0:03:03]} Kf6 {[%emt 0:00:06]} 65. Ra8 {[%emt 0:00:56]} Rc4 {[%emt 0:03:
09]} 66. Ra5 {[%emt 0:02:41]} Ke6 {[%emt 0:02:37]} 67. Rb5 {[%emt 0:00:39]} Rd4
{[%emt 0:01:27]} 68. Ke3 {[%emt 0:01:17]} Rd5 {[%emt 0:01:51]} 69. Rb6+ {
[%emt 0:00:25]} Ke5 {[%emt 0:00:09]} 70. Rg6 {[%emt 0:00:15]} f4+ {[%emt 0:02:
00]} 71. Kf3 {[%emt 0:01:00]} Rd3+ {[%emt 0:00:24]} 72. Kf2 {[%emt 0:02:20]}
Rg3 {[%emt 0:01:46]} 73. Rg8 {[%emt 0:00:35]} Kf6 {[%emt 0:00:55]} 74. Ra8 {
[%emt 0:00:08]} Kg7 {[%emt 0:00:57]} 75. Ra7+ {[%emt 0:00:40]} Kf6 {[%emt 0:00:
57]} 76. Ra8 {[%emt 0:00:21]} Rd3 {[%emt 0:01:06]} 77. Rf8+ {[%emt 0:01:05]}
Ke6 {[%emt 0:00:27]} 78. Re8+ {[%emt 0:00:58]} Kf7 {[%emt 0:00:17]} 79. Ra8 {
[%emt 0:00:49]} Re3 {[%emt 0:00:26]} 80. Rb8 {[%emt 0:00:36]} Ra3 {[%emt 0:00:
33]} 81. Rb7+ {[%emt 0:00:21]} Ke6 {[%emt 0:00:12]} 82. Rb6+ {[%emt 0:00:05]}
Kf5 {[%emt 0:00:12]} 83. Rb5+ {[%emt 0:00:10]} Kf6 {[%emt 0:00:45]} 84. Rb6+ {
[%emt 0:00:04]} Ke7 {[%emt 0:00:24]} 85. Rb5 {[%emt 0:00:41]} Rg3 {[%emt 0:00:
11]} 86. Ra5 {[%emt 0:00:05]} Kf6 {[%emt 0:00:47]} 87. Ra6+ {[%emt 0:00:11]}
Ke5 {[%emt 0:00:18]} 88. Ra5+ {[%emt 0:00:01]} Kd4 {[%emt 0:00:12]} 89. Ra4+ {
[%emt 0:00:29]} Kc5 {[%emt 0:00:09]} 90. Ra5+ {[%emt 0:00:02]} Kb4 {[%emt 0:00:
11]} 91. Re5 {[%emt 0:00:11]} Kc3 {[%emt 0:00:45]} 92. Ra5 {[%emt 0:00:13]} Kd4
{[%emt 0:00:25]} 93. Ra4+ {[%emt 0:00:12]} Ke5 {[%emt 0:00:06]} 94. Ra5+ {
[%emt 0:00:05]} Ke4 {[%emt 0:00:09]} 95. Ra4+ {[%emt 0:00:05]} Kf5 {[%emt 0:00:
51]} 96. Ra5+ {[%emt 0:00:02]} Kg6 {[%emt 0:00:09]} 97. Ra6+ {[%emt 0:00:04]}
Kh5 {[%emt 0:00:37]} 98. Rf6 {[%emt 0:00:17]} Ra3 {[%emt 0:00:11]} 99. Rb6 {
[%emt 0:00:12]} Rg3 {[%emt 0:02:27]} 100. Rf6 {[%emt 0:02:13]} g4 {[%emt 0:01:
48]} 101. Rf5+ {[%emt 0:00:23]} Kg6 {[%emt 0:00:09]} 102. Rxf4 {[%emt 0:00:06]}
gxh3 {[%emt 0:00:06]} 103. Rxh4 {[%emt 0:00:16]} Rxg2+ {[%emt 0:00:38]} 104.
Kf3 {[%emt 0:00:05]} Ra2 {[%emt 0:00:16]} 105. Rxh3 {[%emt 0:00:02]} Ra3+ {
[%emt 0:00:04]} 106. Kg4 {[%emt 0:00:05]} Rxh3 {[%emt 0:00:03]} 107. Kxh3 {
[%emt 0:00:01]} 1/2-1/2

[Event "FIDE Womens Grand Swiss 2021"]
[Site "Riga"]
[Date "2021.10.30"]
[Round "4.24"]
[White "Eizaguerri Floris, Maria"]
[Black "Houska, Jovanka"]
[Result "0-1"]
[ECO "B12"]
[WhiteElo "2328"]
[BlackElo "2381"]
[Annotator "NA"]
[PlyCount "100"]
[EventDate "2021.10.27"]
[EventType "swiss"]
[EventCountry "LAT"]
[Tiebreak "Cut1 Buchholz+Sonneborn-Berger (Swiss)"]
[SourceTitle "playchess.com"]
[Source "ChessBase"]
[SourceQuality "1"]
[TimeControl "40/6000+30:20/3000+30:900+30"]

1. e4 {[%emt 0:10:01]} c6 {[%emt 0:10:09]} 2. d4 {[%emt 0:00:07]} d5 {[%emt 0:
00:05]} 3. e5 {[%emt 0:00:07]} Bf5 {[%emt 0:00:16]} 4. Nf3 {[%emt 0:00:15]} e6
{[%emt 0:00:48]} 5. Be2 {[%emt 0:00:07]} c5 {[%emt 0:00:27]} 6. O-O {[%emt 0:
00:16]} Nc6 {[%emt 0:01:43]} 7. c3 {[%emt 0:00:07]} Bg4 {[%emt 0:00:28]} 8.
Nbd2 {[%emt 0:02:34]} Nh6 {[%emt 0:01:57]} 9. a3 {[%emt 0:03:18]} Nf5 {[%emt 0:
04:32]} 10. dxc5 {[%emt 0:11:21]} Bxc5 {[%emt 0:04:27]} 11. b4 {[%emt 0:00:29]}
Be7 {[%emt 0:14:33]} 12. Bb2 {[%emt 0:07:02]} O-O {[%emt 0:06:14]} 13. c4 {
[%emt 0:04:03]} dxc4 {[%emt 0:05:38]} 14. Nxc4 {[%emt 0:00:21]} Rc8 {[%emt 0:
00:09]} 15. Rc1 {[%emt 0:11:44]} Rc7 {[%emt 0:17:05]} 16. Qxd8 {[%emt 0:09:10]}
Rxd8 {[%emt 0:00:23]} 17. Na5 {[%emt 0:00:33]} Rdc8 {[%emt 0:11:39]} 18. Nb3 {
[%emt 0:08:14]} Nh4 {[%emt 0:00:38]} 19. b5 {[%emt 0:13:40]} Nb8 {[%emt 0:03:
32]} 20. Nfd4 {[%emt 0:00:46]} Bxe2 {[%emt 0:00:20]} 21. Nxe2 {[%emt 0:00:03]}
Nd7 {[%emt 0:00:06]} 22. Rxc7 {[%emt 0:04:32]} Rxc7 {[%emt 0:00:05]} 23. Rc1 {
[%emt 0:00:15]} Rxc1+ {[%emt 0:00:15]} 24. Nexc1 {[%emt 0:00:05]} Ng6 {[%emt 0:
00:03]} 25. Nd3 {[%emt 0:00:19]} Nb6 {[%emt 0:01:09]} 26. Na5 {[%emt 0:01:58]}
Na4 {[%emt 0:00:04]} 27. Bd4 {[%emt 0:01:42]} b6 {[%emt 0:03:07]} 28. Nc6 {
[%emt 0:02:51]} Bxa3 {[%emt 0:00:25]} 29. Nxa7 {[%emt 0:00:08]} Ne7 {[%emt 0:
01:19]} 30. f4 {[%emt 0:06:17]} Kf8 {[%emt 0:01:13]} 31. Ne1 {[%emt 0:09:05]}
Ke8 {[%emt 0:06:36]} 32. Nc2 {[%emt 0:03:02]} Bc5 {[%emt 0:04:12]} 33. Bxc5 {
[%emt 0:00:16]} bxc5 {[%emt 0:00:03]} 34. b6 {[%emt 0:01:00]} Nxb6 {[%emt 0:00:
05]} 35. Nb5 {[%emt 0:00:02]} Ned5 {[%emt 0:02:46]} 36. g3 {[%emt 0:01:00]} Kd7
{[%emt 0:00:20]} 37. Kf2 {[%emt 0:00:41]} Nc4 {[%emt 0:01:05]} 38. Ke2 {
[%emt 0:00:35]} Kc6 {[%emt 0:01:06]} 39. Nba3 {[%emt 0:00:14]} Nxa3 {[%emt 0:
00:26]} 40. Nxa3 {[%emt 0:00:02]} Nb6 {[%emt 0:00:10]} 41. Kd3 {[%emt 0:51:04]}
Kd5 {[%emt 0:58:44]} 42. Nb5 {[%emt 0:00:55]} c4+ {[%emt 0:00:14]} 43. Ke3 {
[%emt 0:00:00]} Kc5 {[%emt 0:00:00]} 44. Nd6 {[%emt 0:00:00]} Nd5+ {[%emt 0:00:
00]} 45. Kd2 {[%emt 0:00:00]} f6 {[%emt 0:00:00]} 46. Kc2 {[%emt 0:00:00]} fxe5
{[%emt 0:00:00]} 47. fxe5 {[%emt 0:00:00]} Kd4 {[%emt 0:00:00]} 48. Ne8 {
[%emt 0:00:00]} Nb4+ {[%emt 0:00:00]} 49. Kc1 {[%emt 0:00:00]} c3 {[%emt 0:00:
00]} 50. Nxg7 {[%emt 0:00:00]} Kd3 {[%emt 0:00:00]} 0-1